bitfinex-derivatives/quotes_ETHF0:USTF0_20240826
["timestamp","ask_amount","ask_price","bid_price","bid_amount"]
[1724680368497,5.7256,2724.5,2724.4,0.00550651]
[1724680370499,10.7256,2724.5,2724.4,0.00550651]
[1724680371598,5.7256,2724.5,2724.4,0.00550651]
[1724680371804,4.80824,2724.5,2724.4,0.00550651]
[1724680371999,0.75004,2724.5,2724.4,0.00550651]
[1724680372195,0.3831,2724.5,2724.4,0.00550651]
[1724680372400,0.36694,2724.5,2724.4,0.00550651]
[1724680372798,0.7499,2724.8,2724.5,0.36694]
[1724680373007,0.36693,2724.6,2724.4,0.37245651]
[1724680373400,0.36693,2724.6,2724.5,0.36694]
[1724680374901,1.66716,2724.8,2724.4,0.00550651]
[1724680374902,0.36694,2724.5,2724.4,0.00550651]
[1724680375312,1.2843,2724.5,2724.4,0.00550651]
[1724680375504,4.9547,2724.5,2724.4,0.00550651]
[1724680375700,5.87206,2724.5,2724.4,0.00550651]
[1724680375902,10.87206,2724.5,2724.4,0.00550651]
[1724680376606,4.9547,2724.5,2724.4,0.00550651]
[1724680378800,1.2843,2724.5,2724.4,0.00550651]
[1724680379001,0.36694,2724.5,2724.4,0.00550651]
[1724680379311,0.36694,2724.5,2724.4,0.37244651]
[1724680379704,4.03734,2724.5,2724.4,0.37244651]
[1724680379912,4.03734,2724.5,2724.4,0.00550651]
[1724680380210,4.03734,2724.5,2724.4,0.37245651]
[1724680380402,4.03734,2724.5,2724.4,0.00550651]
[1724680380602,4.9547,2724.5,2724.4,0.00550651]
[1724680380808,4.9547,2724.5,2724.4,0.37245651]
[1724680380809,4.03734,2724.5,2724.4,0.37245651]
[1724680381113,0.36694,2724.5,2724.4,0.37245651]
[1724680382008,3.57472,2724.7,2724.6,0.36693]
[1724680382403,3.2078,2724.7,2724.6,0.36693]
[1724680382603,0.36694,2724.6,2724.5,0.36693]
[1724680382907,3.2078,2724.7,2724.4,0.36240651]
[1724680383107,0.36693,2724.6,2724.5,0.36693]
[1724680383306,0.36694,2724.5,2724.4,0.00550651]
[1724680383905,0.36694,2724.5,2724.4,0.37245651]
[1724680384105,0.36694,2724.5,2724.4,0.00550651]
[1724680384718,1.2843,2724.5,2724.4,0.00550651]
[1724680384916,1.6494,2724.5,2724.4,0.00550651]
[1724680386008,5.3198,2724.5,2724.4,0.00550651]
[1724680386806,10.3198,2724.5,2724.4,0.00550651]
[1724680388610,5.3198,2724.5,2724.4,0.00550651]
[1724680389316,11.23716,2724.5,2724.4,0.00550651]
[1724680389507,0.367,2724.1,2723.9,0.36701]
[1724680389909,0.36697,2724.3,2724.1,0.36699]
[1724680390221,1.30355,2724.6,2724.1,3.6712]
[1724680390222,0.36693,2724.6,2724.1,3.6712]
[1724680390417,3.2078,2724.7,2724.0,0.91752]
[1724680390418,0.36694,2724.5,2724.3,0.36696]
[1724680390616,0.36697,2724.3,2724.2,0.36698]
[1724680390814,0.36698,2724.2,2724.1,0.37249651]
[1724680391013,0.36698,2724.2,2724.1,0.00550651]
[1724680391518,4.95564,2724.2,2724.1,0.00550651]
[1724680391814,4.03818,2724.2,2724.1,0.00550651]
[1724680392223,4.95564,2724.2,2724.1,0.00550651]
[1724680392406,4.39858,2724.2,2724.1,0.00550651]
[1724680392612,0.36698,2724.2,2724.1,0.00550651]
[1724680392808,4.03818,2724.2,2724.1,0.00550651]
[1724680393518,0.36698,2724.2,2724.1,0.00550651]
[1724680393714,0.73738,2724.3,2724.1,0.37249651]
[1724680393916,0.36698,2724.3,2724.1,0.37249651]
[1724680394424,0.36697,2724.3,2724.2,0.36697]
[1724680394814,0.36698,2724.2,2724.1,0.37248651]
[1724680395819,0.36698,2724.3,2724.2,0.36698]
[1724680396022,0.36698,2724.2,2724.1,0.37249651]
[1724680396221,0.36698,2724.2,2724.1,0.00550651]
[1724680396523,1.28444,2724.2,2724.1,0.00550651]
[1724680397214,0.36698,2724.2,2724.1,0.37249651]
[1724680397418,4.187,2724.8,2724.5,0.36694]
[1724680397610,4.187,2724.8,2724.1,4.59418651]
[1724680397611,0.36693,2724.6,2724.2,0.95413014]
[1724680397819,0.36693,2724.6,2724.4,0.36695]
[1724680398012,3.2078,2724.7,2724.4,0.36695]
[1724680398013,0.36694,2724.5,2724.4,0.36695]
[1724680398321,0.36694,2724.6,2724.4,0.36695]
[1724680398511,0.36694,2724.5,2724.4,0.36695]
[1724680398913,0.36694,2724.6,2724.5,0.36694]
[1724680399117,0.36694,2724.6,2724.4,0.36695]
[1724680399818,0.36694,2724.6,2724.3,1.69943014]
[1724680400021,0.36694,2724.6,2724.4,0.36695]
[1724680400322,0.36694,2724.6,2724.3,1.69943014]
[1724680400323,0.36694,2724.6,2724.5,0.36694]
[1724680400709,0.36694,2724.6,2724.4,0.36695]
[1724680400912,0.36694,2724.5,2724.4,0.36695]
[1724680401112,0.36694,2724.6,2724.4,0.36695]
[1724680401308,0.91727,2724.8,2724.4,0.36695]
[1724680402022,0.36694,2724.5,2724.4,0.36695]
[1724680403315,0.9173,2724.7,2724.3,2.06639014]
[1724680403615,0.36695,2724.5,2724.4,0.36695]
[1724680404011,0.36694,2724.6,2724.5,0.36694]
[1724680404214,0.36692,2724.7,2724.6,0.36692]
[1724680404419,0.36693,2724.6,2724.5,0.36693]
[1724680404810,0.36693,2724.6,2724.5,4.03733]
[1724680405014,0.36693,2724.6,2724.5,3.6704]
[1724680405222,0.36693,2724.6,2724.5,0.36694]
[1724680405427,0.36694,2724.5,2724.4,0.36694]
[1724680405819,0.36694,2724.5,2724.4,4.03734]
[1724680406428,0.36694,2724.5,2724.4,3.6704]
[1724680406625,0.36695,2724.4,2724.3,0.37]
[1724680406823,1.28434,2724.4,2724.3,0.37]
[1724680407027,2.2019,2724.2,2724.1,0.00550651]
[1724680407418,5.8731,2724.2,2724.1,0.00550651]
[1724680408017,10.8731,2724.2,2724.1,0.00550651]
[1724680408217,11.2425,2724.2,2724.1,0.00550651]
[1724680408918,0.36706,2723.6,2723.5,3.2078]
[1724680409121,0.36709,2723.4,2723.3,0.95413014]
[1724680409328,0.91783,2723.1,2722.9,0.00473527]
[1724680409619,5.095,2723.0,2722.9,0.00473527]
[1724680409831,8.7678,2723.0,2722.9,0.00473527]
[1724680410014,8.7678,2723.0,2722.2,1.79843522]
[1724680410015,0.36724,2722.3,2722.2,0.95413014]
[1724680410329,3.2078,2722.4,2722.0,0.00550651]
[1724680410620,4.17726,2722.1,2722.0,0.00550651]
[1724680411113,12.85086,2722.1,2721.6,0.36733]
[1724680411316,7.0178,2721.7,2721.6,0.36733]
[1724680411816,0.7464,2722.3,2721.0,0.91853]
[1724680411817,3.2078,2722.0,2721.2,3.2078]
[1724680412024,4.92365,2722.3,2721.7,0.36731]
[1724680412025,0.36725,2722.2,2721.7,0.36731]
[1724680412223,9.63553623,2722.2,2721.7,0.37152665]
[1724680412424,0.37275651,2722.2,2721.7,0.37519763]
[1724680412727,0.00550651,2722.2,2721.8,0.3673]
[1724680412925,0.00550651,2722.2,2721.7,3.58299763]
[1724680413120,0.00550651,2722.2,2721.7,0.37519763]
[1724680413425,0.00550651,2722.2,2721.8,0.3673]
[1724680413629,0.00550651,2722.2,2721.9,4.04088]
[1724680413827,0.00550651,2722.2,2722.0,4.04]
[1724680414016,0.00550651,2722.2,2722.1,0.3627]
[1724680414218,0.00550651,2722.2,2722.1,4.0363]
[1724680415318,0.00550651,2722.2,2722.1,3.6736]
[1724680415825,0.00550651,2722.2,2722.1,9.04086]
[1724680416020,0.00550651,2722.2,2722.1,4.04086]
[1724680416521,0.00550651,2722.2,2722.1,3.6736]
[1724680416721,0.00550651,2722.2,2722.1,4.04086]
[1724680416916,0.00550651,2722.2,2722.1,8.6736]
[1724680417117,0.00550651,2722.2,2722.1,3.6736]
[1724680418928,0.00550651,2722.2,2722.0,0.3664]
[1724680419121,0.37276651,2722.2,2722.0,0.3664]
[1724680419431,0.36726,2722.1,2722.0,0.3664]
[1724680420125,0.36726,2722.1,2722.0,4.04]
[1724680421024,0.36726,2722.1,2722.0,0.3664]
[1724680421224,0.37276651,2722.2,2722.0,0.3664]
[1724680423628,0.00550651,2722.2,2722.1,0.36726]
[1724680423824,0.00550651,2722.2,2722.1,4.04086]
[1724680424926,0.00550651,2722.2,2722.0,0.3664]
[1724680425325,0.37275651,2722.2,2722.0,0.3664]
[1724680425728,0.00550651,2722.2,2722.0,0.3664]
[1724680426119,0.00550651,2722.2,2722.0,0.73367]
[1724680426636,0.00550651,2722.2,2722.1,4.04086]
[1724680427130,0.00550651,2722.2,2722.1,4.42096]
[1724680428328,0.00550651,2722.2,2722.1,9.42096]
[1724680429037,0.00550651,2722.2,2722.0,3.5742]
[1724680429219,0.36726,2722.1,2722.0,3.5742]
[1724680429734,0.3673,2721.9,2721.7,0.00788763]
[1724680430032,0.36729,2722.0,2721.7,0.37520763]
[1724680430832,0.36729,2722.0,2721.8,0.3673]
[1724680431040,0.74727,2722.1,2721.8,0.3673]
[1724680431332,0.36728,2722.0,2721.7,0.37519763]
[1724680431943,0.36728,2722.0,2721.8,0.3673]
[1724680432230,0.36728,2722.0,2721.7,0.37519763]
[1724680432530,0.36729,2721.9,2721.7,0.00788763]
[1724680433133,0.36728,2722.0,2721.7,0.37519763]
[1724680433339,0.3673,2721.8,2721.7,0.00788763]
[1724680434937,0.3673,2721.9,2721.7,0.00788763]
[1724680435131,0.3673,2721.9,2721.7,0.37520763]
[1724680435321,0.3673,2721.9,2721.7,0.00788763]
[1724680435835,0.36729,2722.0,2721.7,0.37519763]
[1724680437233,0.3673,2721.9,2721.7,0.00788763]
[1724680437533,0.3673,2721.9,2721.7,0.37520763]
[1724680437835,0.36729,2722.0,2721.7,0.37520763]
[1724680438229,0.36729,2721.9,2721.7,0.00788763]
[1724680438731,0.36728,2722.0,2721.7,0.00788763]
[1724680438936,0.36729,2721.9,2721.7,0.37519763]
[1724680439236,0.36729,2722.0,2721.7,0.37519763]
[1724680439428,0.38,2722.1,2721.7,0.00788763]
[1724680439632,0.00550651,2722.2,2722.1,0.36726]
[1724680439835,4.187,2722.4,2722.3,0.36724]
[1724680440136,3.2078,2722.8,2722.3,3.6736]
[1724680440432,3.57498,2722.8,2722.4,0.36721]
[1724680440638,3.81,2723.2,2722.4,3.6728]
[1724680440639,0.00455985,2723.1,2722.4,3.6728]
[1724680440834,0.00455985,2723.1,2722.5,3.59]
[1724680441132,0.00550651,2722.9,2722.8,0.36717]
[1724680441337,0.00550651,2722.9,2722.6,0.75399]
[1724680441536,0.00550651,2722.9,2722.6,0.3868]
[1724680441745,0.00550651,2722.9,2722.5,3.59]
[1724680442035,0.00550651,2722.9,2722.3,0.36723]
[1724680442036,0.36721,2722.6,2722.3,0.36723]
[1724680442335,0.918,2722.6,2722.0,3.9557]
[1724680442529,0.918,2722.6,2722.0,4.32297]
[1724680442930,0.36722,2722.4,2722.1,0.36726]
[1724680444336,0.918,2722.6,2722.0,3.9557]
[1724680444541,4.1688,2722.3,2721.7,0.00788763]
[1724680444836,0.3673,2721.8,2721.7,0.00788763]
[1724680445227,4.4152,2721.8,2721.7,0.00788763]
[1724680446538,0.7408,2721.8,2721.7,0.00788763]
[1724680447237,0.3735,2721.8,2721.7,0.00788763]
[1724680447846,3.5655,2722.2,2721.7,0.00788763]
[1724680448031,3.9417,2722.2,2721.7,0.00788763]
[1724680448338,0.3673,2721.9,2721.7,0.00788763]
[1724680449140,0.3673,2721.8,2721.7,0.00788763]
[1724680449338,0.7282,2721.8,2721.7,0.00788763]
[1724680449640,0.3609,2721.8,2721.7,0.37520763]
[1724680449939,0.36729,2722.0,2721.8,0.3673]
[1724680449940,0.36728,2722.0,2721.8,0.3673]
[1724680450435,0.36727,2722.1,2721.8,0.3673]
[1724680450943,0.36727,2722.1,2721.9,0.36729]
[1724680451245,3.2078,2722.2,2721.7,0.00788763]
[1724680451429,0.36728,2722.0,2721.8,0.3673]
[1724680451837,3.2078,2722.2,2721.7,0.00788763]
[1724680451838,0.3673,2721.8,2721.7,0.00788763]
[1724680453442,0.3673,2721.8,2721.0,0.3743]
[1724680453443,0.36739,2721.2,2721.0,0.3743]
[1724680453644,0.7368,2721.7,2721.2,0.36738]
[1724680453829,0.36734,2721.6,2721.0,0.3743]
[1724680454032,0.7368,2721.7,2721.0,0.3743]
[1724680454033,0.36735,2721.5,2721.0,0.3743]
[1724680454240,0.36739,2721.2,2721.0,0.00373613]
[1724680454455,0.36738,2721.3,2721.0,3.68444264]
[1724680454632,0.00550651,2721.5,2721.2,0.36738]
[1724680454834,0.00550651,2721.5,2721.0,0.00924264]
[1724680455036,0.36738,2721.3,2721.1,0.3674]
[1724680455235,0.36738,2721.3,2721.0,0.37664264]
[1724680456343,0.00550651,2721.5,2721.0,0.37664264]
[1724680456842,0.36738,2721.3,2721.0,0.37664264]
[1724680457049,0.00550651,2721.5,2721.0,0.37664264]
[1724680457245,0.00550651,2721.5,2721.1,0.3674]
[1724680457548,0.36737,2721.4,2721.1,0.3674]
[1724680457747,0.36737,2721.4,2721.2,0.36738]
[1724680458145,0.00550651,2721.5,2721.4,0.36736]
[1724680458540,0.00550651,2721.5,2721.4,4.04176]
[1724680459045,0.00550651,2721.5,2721.4,7.24956]
[1724680460345,0.36737,2721.3,2721.2,0.74568]
[1724680461050,0.9184,2721.4,2721.1,0.36739]
[1724680461236,0.3674,2721.1,2721.0,0.00924264]
[1724680461442,2.2084812,2721.1,2721.0,0.00924264]
[1724680461639,10.8836812,2721.1,2721.0,0.00924264]
[1724680462042,10.8836812,2721.1,2720.6,3.2078]
[1724680462043,1.28609,2720.7,2720.6,3.2078]
[1724680462238,0.36749,2720.4,2720.3,0.3675]
[1724680462448,0.3675,2720.4,2720.3,0.36751]
[1724680462646,0.36749,2720.5,2720.3,4.04349]
[1724680462849,0.36749,2720.5,2720.3,0.3675]
[1724680463056,0.36749,2720.5,2720.3,0.37060579]
[1724680463346,0.36749,2720.4,2720.3,0.00310579]
[1724680463552,4.75189,2720.4,2720.3,0.00310579]
[1724680463747,5.67063,2720.4,2720.3,0.00310579]
[1724680464048,4.75189,2720.4,2720.3,0.00310579]
[1724680465047,1.07589,2720.4,2720.3,0.00310579]
[1724680465247,0.9186,2720.9,2720.3,0.00310579]
[1724680465442,0.368,2720.8,2720.3,0.00310579]
[1724680465952,0.36746,2720.7,2720.5,0.36747]
[1724680466249,0.73545,2720.8,2720.5,0.36747]
[1724680466453,0.36743,2720.9,2720.4,0.7515]
[1724680466645,4.187,2721.0,2720.4,3.9593]
[1724680466839,4.187,2721.0,2720.5,0.36747]
[1724680466840,0.36746,2720.7,2720.5,0.36747]
[1724680467150,0.36745,2720.8,2720.5,0.36748]
[1724680467350,0.36745,2720.8,2720.6,0.36746]
[1724680467547,4.55442,2721.0,2720.4,7.6353]
[1724680467847,4.55442,2721.0,2720.8,0.36743]
[1724680468040,4.55442,2721.0,2720.9,0.36743]
[1724680468240,4.55442,2721.0,2720.4,3.9593]
[1724680468241,0.0040812,2721.1,2721.0,0.36741]
[1724680468753,0.0040812,2721.1,2721.0,4.04261]
[1724680470155,0.0040812,2721.1,2721.0,0.36741]
[1724680470454,0.0040812,2721.1,2720.6,1.29705]
[1724680470455,0.3714912,2721.1,2720.9,0.36743]
[1724680470750,0.0040812,2721.1,2721.0,0.36741]
[1724680470944,0.0040812,2721.1,2721.0,0.72171]
[1724680471142,0.0040812,2721.1,2721.0,4.39691]
[1724680471455,0.3714812,2721.1,2721.0,3.6752]
[1724680471760,0.3714812,2721.1,2720.9,0.36742]
[1724680471956,0.3714912,2721.1,2720.8,0.36743]
[1724680472454,0.3714912,2721.1,2720.7,0.3853]
[1724680472455,0.0040812,2721.1,2720.7,0.75275]
[1724680472753,0.36743,2720.9,2720.7,0.75275]
[1724680473354,0.36742,2721.0,2720.8,0.36744]
[1724680473554,0.0040812,2721.1,2720.7,0.75275]
[1724680473555,0.36743,2720.9,2720.7,0.75275]
[1724680473853,0.0040812,2721.1,2720.8,0.36744]
[1724680473854,0.36742,2721.0,2720.8,0.36744]
[1724680474157,0.0040812,2721.1,2720.7,0.3853]
[1724680474760,0.3714812,2721.1,2720.9,0.36742]
[1724680474961,0.0040812,2721.1,2721.0,0.36741]
[1724680475259,0.3714812,2721.1,2720.9,0.36742]
[1724680475659,0.36741,2721.0,2720.8,0.36743]
[1724680476048,0.0040812,2721.1,2720.7,0.3853]
[1724680476049,0.3714912,2721.1,2720.7,0.3853]
[1724680476353,0.3714812,2721.1,2720.9,0.36742]
[1724680476544,0.0040812,2721.1,2720.9,0.36742]
[1724680476746,3.2118812,2721.1,2720.7,0.3853]
[1724680477054,3.2118812,2721.1,2720.6,0.36747]
[1724680477055,0.91857,2720.9,2720.6,0.36747]
[1724680477355,0.36745,2720.7,2720.5,0.36747]
[1724680477660,0.91859,2720.9,2720.4,0.75539]
[1724680477861,0.36747,2720.6,2720.4,0.3879]
[1724680478056,1.28706,2721.0,2720.6,0.36746]
[1724680478254,0.36744,2720.8,2720.6,0.36746]
[1724680478450,0.36744,2720.8,2720.4,0.3879]
[1724680478451,0.36748,2720.5,2720.4,0.3879]
[1724680478659,0.36747,2720.6,2720.4,0.36748]
[1724680478955,0.36747,2720.6,2720.4,0.36749]
[1724680478956,0.36748,2720.6,2720.4,0.36749]
[1724680479156,0.36748,2720.5,2720.4,0.36749]
[1724680479347,0.36747,2720.6,2720.4,0.36749]
[1724680479552,0.36746,2720.7,2720.3,0.38350579]
[1724680479749,0.36746,2720.7,2720.5,0.36747]
[1724680480159,4.12638,2720.9,2720.3,0.38350579]
[1724680480160,3.2078,2720.9,2720.3,0.38350579]
[1724680480355,0.36744,2720.8,2720.7,0.36745]
[1724680480956,0.36744,2720.8,2720.6,0.36746]
[1724680481253,1.28705,2721.0,2720.6,0.36746]
[1724680481458,1.28705,2721.0,2720.4,0.3895]
[1724680481459,0.36745,2720.7,2720.4,0.3895]
[1724680481655,1.28705,2721.0,2720.3,0.00310579]
[1724680481656,3.81,2720.8,2720.3,0.00310579]
[1724680481863,1.28623,2720.4,2720.3,0.00310579]
[1724680482054,1.28623,2720.4,2719.5,0.3693]
[1724680482256,1.28623,2720.4,2719.5,0.73691]
[1724680482257,0.36758,2719.8,2719.5,0.73691]
[1724680482558,0.36761,2719.5,2719.4,0.3571]
[1724680482761,0.36763,2719.4,2719.1,3.57546]
[1724680483067,0.3823,2719.7,2719.0,1.09408]
[1724680483260,0.36766,2719.2,2719.1,0.00405783]
[1724680483749,0.36763,2719.4,2719.1,0.00405783]
[1724680483950,0.7457,2719.7,2719.1,0.00405783]
[1724680483951,0.7457,2719.7,2719.1,0.37171783]
[1724680484150,0.36761,2719.6,2719.2,0.36765]
[1724680484351,0.3823,2719.7,2719.2,3.2078]
[1724680484562,0.3823,2719.7,2719.4,0.36762]
[1724680484768,0.74989,2719.7,2719.3,0.7451]
[1724680484956,4.55457,2719.9,2719.3,0.7451]
[1724680485161,0.36756,2720.0,2719.6,0.36759]
[1724680485455,3.9242,2720.1,2719.3,0.7451]
[1724680485456,0.36757,2719.9,2719.5,0.36761]
[1724680485760,0.36757,2719.9,2719.6,0.3676]
[1724680485956,0.36755,2720.0,2719.6,0.3676]
[1724680486263,0.36758,2719.8,2719.3,0.7451]
[1724680486452,0.36758,2719.8,2719.4,0.36762]
[1724680486647,5.08,2720.0,2719.1,0.00405783]
[1724680486848,0.36763,2719.4,2719.1,0.37171783]
[1724680487252,0.91894,2719.8,2719.1,0.00405783]
[1724680487461,0.36762,2719.5,2719.1,0.37171783]
[1724680487662,0.36763,2719.4,2719.1,0.00405783]
[1724680487855,0.36762,2719.5,2719.1,0.37172783]
[1724680488658,5.4493,2720.0,2719.1,0.00405783]
[1724680488859,0.36758,2719.8,2719.3,0.36763]
[1724680489058,0.36758,2719.8,2719.1,0.00405783]
[1724680489264,0.36758,2719.8,2719.4,0.36763]
[1724680489466,0.36759,2719.7,2719.3,0.36763]
[1724680489653,5.4493,2720.0,2719.1,0.00405783]
[1724680489859,5.4493,2720.0,2719.3,0.36764]
[1724680490164,5.4493,2720.0,2719.1,0.00405783]
[1724680490356,4.12683,2719.6,2719.1,0.00405783]
[1724680490551,0.36765,2719.2,2719.1,0.00405783]
[1724680491981,4.04525,2719.2,2719.1,0.00405783]
[1724680492158,4.9644,2719.2,2719.1,0.00405783]
[1724680493164,0.36765,2719.2,2719.1,0.00405783]
[1724680494471,0.91909,2719.4,2719.2,0.36765]
[1724680494472,0.36763,2719.4,2719.2,0.36765]
[1724680494966,0.7372,2719.5,2719.1,0.37172783]
[1724680495269,0.36764,2719.4,2719.2,0.36765]
[1724680495569,0.7372,2719.5,2719.1,0.37171783]
[1724680495964,0.36764,2719.3,2719.1,0.00405783]
[1724680496164,0.36763,2719.4,2719.2,0.36766]
[1724680496365,0.36763,2719.4,2719.3,0.36764]
[1724680496563,1.10482,2719.5,2719.3,0.36764]
[1724680496872,0.36763,2719.4,2719.3,0.36764]
[1724680497066,0.7372,2719.5,2719.2,0.377]
[1724680497067,1.10482,2719.5,2719.2,0.377]
[1724680497264,3.2078,2719.6,2719.5,0.36761]
[1724680497871,4.187,2719.7,2719.6,0.3676]
[1724680498167,0.00550651,2720.2,2719.6,4.0575]
[1724680498375,0.36753,2720.1,2720.0,0.36754]
[1724680498565,0.00550651,2720.2,2720.1,0.36753]
[1724680499069,0.00550651,2720.2,2720.1,4.04353]
[1724680499566,0.92431651,2720.2,2719.6,0.754]
[1724680499763,0.36753,2720.1,2719.6,0.754]
[1724680499966,0.00550651,2720.2,2719.6,4.4308]
[1724680500173,0.00550651,2720.2,2720.1,0.36753]
[1724680500667,0.00550651,2720.2,2720.1,9.04353]
[1724680500966,3.2078,2720.6,2720.5,0.36748]
[1724680501268,0.7597,2721.3,2720.5,8.676]
[1724680501477,0.7597,2721.3,2720.3,4.12657]
[1724680501478,0.36739,2721.2,2720.6,0.7511]
[1724680501672,0.36739,2721.2,2720.8,0.36743]
[1724680501868,0.7597,2721.3,2720.8,0.36743]
[1724680502171,0.36742,2721.0,2720.7,0.00550651]
[1724680502374,0.36742,2721.0,2720.7,0.37295651]
[1724680502567,0.00550651,2721.2,2720.7,0.37295651]
[1724680502768,0.00550651,2721.2,2720.7,0.00550651]
[1724680502979,0.36742,2721.0,2720.7,0.37295651]
[1724680503274,0.3714912,2721.1,2720.8,0.36744]
[1724680503471,0.3714912,2721.1,2720.8,0.3823]
[1724680503672,0.3714912,2721.1,2720.9,3.6752]
[1724680503673,0.0040812,2721.1,2720.9,3.6752]
[1724680503973,0.3673,2721.9,2721.6,0.36733]
[1724680504166,3.5945,2722.1,2721.0,7.80153]
[1724680504167,0.36734,2721.6,2721.0,3.2078]
[1724680504364,0.36734,2721.6,2721.3,0.36737]
[1724680504669,0.3789,2722.0,2721.5,0.36734]
[1724680504670,0.36731,2721.8,2721.5,0.36734]
[1724680504863,0.0028936,2721.8,2721.5,0.00333324]
[1724680505262,0.0028936,2721.8,2721.6,0.36732]
[1724680505458,0.0028936,2721.8,2721.5,0.00333324]
[1724680505874,0.0028936,2721.8,2721.7,0.36732]
[1724680506077,0.0028936,2721.8,2721.6,0.36732]
[1724680506265,0.0028936,2721.8,2721.5,0.00333324]
[1724680506571,0.36733,2721.6,2721.5,0.00333324]
[1724680506762,0.36732,2721.7,2721.5,0.00333324]
[1724680506960,0.0028936,2721.8,2721.5,0.00333324]
[1724680507168,0.36733,2721.6,2721.5,0.00333324]
[1724680507368,0.3702036,2721.8,2721.5,0.00333324]
[1724680507665,0.36733,2721.6,2721.5,0.00333324]
[1724680509561,8.16786,2721.6,2721.5,0.00333324]
[1724680509760,8.16786,2721.6,2720.8,0.36743]
[1724680509965,8.16786,2721.6,2720.7,0.00550651]
[1724680509966,0.36741,2721.0,2720.7,0.37295651]
[1724680510365,0.36741,2721.0,2720.7,0.00550651]
[1724680510661,0.36741,2721.1,2720.8,0.36743]
[1724680510869,0.36741,2721.0,2720.8,0.00292001]
[1724680511262,0.36743,2720.9,2720.8,0.00292001]
[1724680511464,8.169,2720.9,2720.8,0.00292001]
[1724680511665,0.91864,2720.7,2720.1,0.36752]
[1724680511978,4.187,2720.9,2719.9,0.7568]
[1724680512169,4.187,2720.9,2720.7,0.36744]
[1724680512473,4.187,2720.9,2720.2,0.91878]
[1724680512474,0.36743,2720.9,2720.2,0.91878]
[1724680512670,0.36744,2720.8,2720.5,0.36747]
[1724680512872,3.9591,2721.2,2720.2,0.00360713]
[1724680513172,3.9591,2721.2,2720.4,0.91874]
[1724680513173,3.2078,2721.2,2720.4,0.91874]
[1724680513366,1.66212,2721.7,2721.1,0.36739]
[1724680513565,1.66212,2721.7,2720.7,3.2078]
[1724680513566,1.66212,2721.7,2721.2,0.36738]
[1724680513772,0.7438,2721.7,2720.8,0.3794]
[1724680513967,0.36734,2721.6,2720.8,4.55142232]
[1724680514167,0.7438,2721.7,2720.9,0.91857]
[1724680514377,0.7438,2721.7,2721.4,0.36735]
[1724680514671,1.11113,2721.7,2721.4,0.36735]
[1724680515378,0.36733,2721.6,2721.3,0.36736]
[1724680515973,0.36733,2721.6,2721.4,0.36736]
[1724680516376,0.36734,2721.6,2721.3,0.36737]
[1724680516685,0.0028936,2721.8,2720.9,5.13084156]
[1724680516983,0.0028936,2721.8,2721.6,0.36733]
[1724680517274,0.3702036,2721.8,2721.6,0.36733]
[1724680517477,0.0028936,2721.8,2721.4,0.3745]
[1724680517674,0.0028936,2721.8,2721.7,0.36732]
[1724680518877,0.0028936,2721.8,2721.7,4.04172]
[1724680519272,0.0028936,2721.8,2721.7,9.04172]
[1724680519673,0.00550651,2721.9,2721.7,8.6744]
[1724680519878,3.57503,2722.4,2722.2,0.36724]
[1724680520179,0.36724,2722.3,2722.1,0.36726]
[1724680520768,0.37180715,2722.3,2722.1,0.37128232]
[1724680520976,0.36725,2722.2,2722.1,0.00402232]
[1724680521680,1.28538,2722.2,2722.1,0.00402232]
[1724680521997,5.31088,2722.2,2722.1,0.00402232]
[1724680522276,6.22901,2722.2,2722.1,0.00402232]
[1724680522466,11.22901,2722.2,2722.1,0.00402232]
[1724680523068,11.22901,2722.2,2721.9,0.00550651]
[1724680523069,2.20368,2722.0,2721.9,0.00550651]
[1724680523476,10.87728,2722.0,2721.9,0.00550651]
[1724680523674,5.87728,2722.0,2721.9,0.00550651]
[1724680524080,10.87728,2722.0,2721.9,0.0084204]
[1724680524581,10.87728,2722.0,2720.9,0.91857]
[1724680524582,0.36734,2721.6,2720.9,0.91857]
[1724680524779,13.40772758,2722.0,2721.5,0.36733]
[1724680524979,0.36735,2721.5,2721.4,0.36735]
[1724680525180,0.36733,2721.7,2721.6,0.36733]
[1724680525387,0.36734,2721.6,2721.5,0.36734]
[1724680525581,0.3768,2721.8,2721.5,0.00304737]
[1724680525882,0.36732,2721.7,2721.6,0.36732]
[1724680526882,3.57508,2722.0,2721.9,0.36729]
[1724680527069,1.27004,2722.2,2721.8,0.36729]
[1724680527070,0.3673,2721.9,2721.8,0.36729]
[1724680527777,0.91816,2722.1,2721.6,0.3699]
[1724680528081,0.3673,2721.9,2721.8,0.3673]
[1724680528483,0.36729,2721.9,2721.8,0.36729]
[1724680528784,0.7165,2722.2,2721.8,3.6736]
[1724680528979,1.63465,2722.2,2721.6,0.7511]
[1724680529181,1.63465,2722.2,2721.5,0.00304737]
[1724680529182,0.36733,2721.6,2721.5,0.00304737]
[1724680529686,0.36733,2721.7,2721.5,0.37038737]
[1724680529884,0.36733,2721.6,2721.5,0.00304737]
[1724680530687,4.04173,2721.6,2721.5,0.00304737]
[1724680530888,4.96006,2721.6,2721.5,0.00304737]
[1724680531584,0.36733,2721.6,2721.5,0.00304737]
[1724680531779,0.36731,2721.8,2721.5,3.67744737]
[1724680531977,0.3673,2721.9,2721.5,0.00304737]
[1724680532181,3.2078,2722.0,2721.5,0.37614737]
[1724680532388,0.36733,2721.6,2721.5,0.37614737]
[1724680532576,0.36733,2721.6,2721.5,0.00304737]
[1724680533275,4.04173,2721.6,2721.5,0.00304737]
[1724680533489,4.04173,2721.6,2720.7,0.36744]
[1724680533490,12.6051,2721.6,2720.7,0.36744]
[1724680533679,0.9184,2721.4,2720.7,0.36745]
[1724680534083,0.9184,2721.4,2720.8,0.36743]
[1724680534277,3.2078,2721.1,2720.6,0.352]
[1724680534584,0.36744,2720.9,2720.6,0.35644848]
[1724680534982,0.36745,2720.7,2720.6,0.00444848]